[Event "*** SCC Grand Prix: Titled Tuesday Blitz"]
[Site "Chess.com"]
[Date "2020.07.07"]
[Round "9"]
[White "Lenyas66"]
[Black "tlomigtlis"]
[Result "1-0"]
[WhiteElo "2487"]
[BlackElo "2366"]
[TimeControl "180+1"]
[EndTime "11:47:05 PDT"]
[Termination "Lenyas66 won by checkmate"]

1. e4 {[%clk 0:03:00.9]} 1... c5 {[%clk 0:03:00.1]} 2. Nf3 {[%clk 0:03:01]} 2...
d6 {[%clk 0:03:00.5]} 3. Bb5+ {[%clk 0:03:00.5]} 3... Nd7 {[%clk 0:02:59.8]} 4.
a4 {[%clk 0:02:59.9]} 4... Nf6 {[%clk 0:02:59.8]} 5. Nc3 {[%clk 0:02:59.9]} 5...
a6 {[%clk 0:02:59.3]} 6. Be2 {[%clk 0:02:59.4]} 6... g6 {[%clk 0:02:59]} 7. O-O
{[%clk 0:02:59.4]} 7... Bg7 {[%clk 0:02:59.2]} 8. a5 {[%clk 0:02:59.7]} 8... O-O
{[%clk 0:02:58.9]} 9. d3 {[%clk 0:02:59.9]} 9... Qc7 {[%clk 0:02:55]} 10. Bf4
{[%clk 0:02:59.4]} 10... e5 {[%clk 0:02:52.3]} 11. Bg5 {[%clk 0:02:53.8]} 11...
h6 {[%clk 0:02:49.3]} 12. Bh4 {[%clk 0:02:54]} 12... g5 {[%clk 0:02:44.8]} 13.
Bg3 {[%clk 0:02:53.9]} 13... Nb8 {[%clk 0:02:45.4]} 14. h4 {[%clk 0:02:36.8]}
14... gxh4 {[%clk 0:01:57.5]} 15. Bxh4 {[%clk 0:02:34.1]} 15... Be6 {[%clk
0:01:58]} 16. Nd2 {[%clk 0:02:27.9]} 16... Nc6 {[%clk 0:01:56.3]} 17. Nc4 {[%clk
0:02:27.9]} 17... Rad8 {[%clk 0:01:30.8]} 18. Ne3 {[%clk 0:01:56.2]} 18... Ne7
{[%clk 0:01:26]} 19. Qe1 {[%clk 0:01:41.9]} 19... Rd7 {[%clk 0:01:17.3]} 20. f4
{[%clk 0:01:40.7]} 20... exf4 {[%clk 0:01:09.8]} 21. Rxf4 {[%clk 0:01:40.6]}
21... d5 {[%clk 0:00:53.2]} 22. Rxf6 {[%clk 0:01:39.3]} 22... Bxf6 {[%clk
0:00:53.4]} 23. Bxf6 {[%clk 0:01:38.8]} 23... d4 {[%clk 0:00:53.9]} 24. Bxe7
{[%clk 0:01:27.4]} 24... dxc3 {[%clk 0:00:51.2]} 25. Bxf8 {[%clk 0:01:25.4]}
25... cxb2 {[%clk 0:00:51.5]} 26. Rb1 {[%clk 0:01:22.8]} 26... Kxf8 {[%clk
0:00:49.7]} 27. Rxb2 {[%clk 0:01:22.2]} 27... Qe5 {[%clk 0:00:49.2]} 28. Rb6
{[%clk 0:01:18.5]} 28... c4 {[%clk 0:00:38.1]} 29. Qf2 {[%clk 0:01:14.8]} 29...
cxd3 {[%clk 0:00:35.4]} 30. cxd3 {[%clk 0:01:12.1]} 30... Ke8 {[%clk 0:00:35.3]}
31. Nc4 {[%clk 0:00:57.7]} 31... Qa1+ {[%clk 0:00:29.7]} 32. Bf1 {[%clk
0:00:53.7]} 32... Qg7 {[%clk 0:00:24.8]} 33. Qc5 {[%clk 0:00:48.7]} 33... Qf6
{[%clk 0:00:18.5]} 34. Nd6+ {[%clk 0:00:45.2]} 34... Kf8 {[%clk 0:00:18.8]} 35.
Nf5+ {[%clk 0:00:40.8]} 35... Kg8 {[%clk 0:00:18.6]} 36. Rd6 {[%clk 0:00:39.8]}
36... Rxd6 {[%clk 0:00:12.3]} 37. Qxd6 {[%clk 0:00:39.8]} 37... Kh7 {[%clk
0:00:13.2]} 38. d4 {[%clk 0:00:37.8]} 38... Qg5 {[%clk 0:00:13]} 39. Qe5 {[%clk
0:00:36.1]} 39... Kg6 {[%clk 0:00:11.5]} 40. d5 {[%clk 0:00:35.7]} 40... Bxf5
{[%clk 0:00:10.9]} 41. exf5+ {[%clk 0:00:35.1]} 41... Qxf5 {[%clk 0:00:11.4]}
42. Qxf5+ {[%clk 0:00:33.7]} 42... Kxf5 {[%clk 0:00:12.3]} 43. Be2 {[%clk
0:00:32.3]} 43... Ke5 {[%clk 0:00:12.6]} 44. Bf3 {[%clk 0:00:32.3]} 44... f5
{[%clk 0:00:13.1]} 45. Kf2 {[%clk 0:00:31.8]} 45... Kd6 {[%clk 0:00:14]} 46. Ke3
{[%clk 0:00:31.8]} 46... Ke5 {[%clk 0:00:14.9]} 47. Kd3 {[%clk 0:00:31.6]} 47...
Kd6 {[%clk 0:00:14.9]} 48. Kd4 {[%clk 0:00:31.8]} 48... f4 {[%clk 0:00:15.3]}
49. Ke4 {[%clk 0:00:31.3]} 49... h5 {[%clk 0:00:16.2]} 50. Kxf4 {[%clk
0:00:31.3]} 50... h4 {[%clk 0:00:16.5]} 51. Kg4 {[%clk 0:00:31.4]} 51... h3
{[%clk 0:00:16.7]} 52. Kxh3 {[%clk 0:00:31.4]} 52... Ke5 {[%clk 0:00:17.6]} 53.
Kg4 {[%clk 0:00:31.4]} 53... Kd6 {[%clk 0:00:18.5]} 54. Kf5 {[%clk 0:00:31.6]}
54... Kc5 {[%clk 0:00:17.9]} 55. Ke6 {[%clk 0:00:31.7]} 55... Kb5 {[%clk
0:00:18.4]} 56. d6 {[%clk 0:00:31.7]} 56... Kxa5 {[%clk 0:00:19.3]} 57. d7
{[%clk 0:00:31.9]} 57... Kb5 {[%clk 0:00:20.2]} 58. d8=Q {[%clk 0:00:32.1]}
58... Ka4 {[%clk 0:00:20.2]} 59. Qb6 {[%clk 0:00:31.7]} 59... Ka3 {[%clk
0:00:20]} 60. Bd5 {[%clk 0:00:29]} 60... Ka4 {[%clk 0:00:20.9]} 61. Qb3+ {[%clk
0:00:27.1]} 61... Ka5 {[%clk 0:00:20.8]} 62. Qxb7 {[%clk 0:00:25.3]} 62... Ka4
{[%clk 0:00:20.6]} 63. Bc4 {[%clk 0:00:25.1]} 63... Ka5 {[%clk 0:00:21.5]} 64.
Kd5 {[%clk 0:00:22.7]} 64... Ka4 {[%clk 0:00:21.4]} 65. Kc5 {[%clk 0:00:22.4]}
65... Ka5 {[%clk 0:00:22.3]} 66. Qb4# {[%clk 0:00:21.6]} 1-0

[Event "*** SCC Grand Prix: Titled Tuesday Blitz"]
[Site "Chess.com"]
[Date "2020.07.07"]
[Round "9"]
[White "KNCP_719"]
[Black "attack2mateU"]
[Result "0-1"]
[WhiteElo "2475"]
[BlackElo "2631"]
[TimeControl "180+1"]
[EndTime "11:47:06 PDT"]
[Termination "attack2mateU won by checkmate"]

1. d4 {[%clk 0:03:00.9]} 1... Nf6 {[%clk 0:02:59.5]} 2. Nf3 {[%clk 0:03:00.8]}
2... g6 {[%clk 0:02:59.5]} 3. e3 {[%clk 0:03:00.7]} 3... Bg7 {[%clk 0:02:59]} 4.
Be2 {[%clk 0:03:01]} 4... O-O {[%clk 0:02:59.3]} 5. O-O {[%clk 0:03:01.5]} 5...
d6 {[%clk 0:02:59.4]} 6. b3 {[%clk 0:03:01.5]} 6... c5 {[%clk 0:02:50.4]} 7. Bb2
{[%clk 0:02:54.5]} 7... cxd4 {[%clk 0:02:49]} 8. exd4 {[%clk 0:02:51.6]} 8... d5
{[%clk 0:02:38.9]} 9. c4 {[%clk 0:02:50.3]} 9... Nc6 {[%clk 0:02:38.3]} 10. Nc3
{[%clk 0:02:44.3]} 10... Bf5 {[%clk 0:02:05]} 11. Ne5 {[%clk 0:01:50.2]} 11...
dxc4 {[%clk 0:01:17.5]} 12. Nxc6 {[%clk 0:01:41.4]} 12... bxc6 {[%clk
0:01:18.4]} 13. bxc4 {[%clk 0:01:41.3]} 13... Rb8 {[%clk 0:01:17.1]} 14. Qd2
{[%clk 0:01:17.6]} 14... Bh6 {[%clk 0:01:06.4]} 15. Qxh6 {[%clk 0:00:58.7]}
15... Rxb2 {[%clk 0:01:06.8]} 16. Qe3 {[%clk 0:00:56.8]} 16... Qa5 {[%clk
0:00:56.9]} 17. Bf3 {[%clk 0:00:39]} 17... Qb4 {[%clk 0:00:32.3]} 18. c5 {[%clk
0:00:12.1]} 18... Ng4 {[%clk 0:00:24.5]} 19. Bxg4 {[%clk 0:00:09.6]} 19... Bxg4
{[%clk 0:00:25.4]} 20. Rac1 {[%clk 0:00:07.1]} 20... Be6 {[%clk 0:00:24.4]} 21.
Qf3 {[%clk 0:00:06.4]} 21... Qxd4 {[%clk 0:00:22.7]} 22. Ne2 {[%clk 0:00:04.7]}
22... Qd5 {[%clk 0:00:19.8]} 23. Qe3 {[%clk 0:00:05.1]} 23... Qd2 {[%clk
0:00:12.9]} 24. Qxd2 {[%clk 0:00:02.3]} 24... Rxd2 {[%clk 0:00:13.8]} 25. Nf4
{[%clk 0:00:02.4]} 25... Bxa2 {[%clk 0:00:13.9]} 26. Ra1 {[%clk 0:00:02.8]}
26... Rb8 {[%clk 0:00:13.5]} 27. Rfe1 {[%clk 0:00:02.8]} 27... e6 {[%clk
0:00:13.4]} 28. h4 {[%clk 0:00:03.2]} 28... Rbb2 {[%clk 0:00:13.7]} 29. Nh3
{[%clk 0:00:03.3]} 29... h6 {[%clk 0:00:13.2]} 30. Re3 {[%clk 0:00:02.9]} 30...
Rb1+ {[%clk 0:00:11.7]} 31. Rxb1 {[%clk 0:00:03]} 31... Bxb1 {[%clk 0:00:12.6]}
32. Ra3 {[%clk 0:00:03.4]} 32... Ra2 {[%clk 0:00:13.2]} 33. Rb3 {[%clk
0:00:03.4]} 33... Bf5 {[%clk 0:00:13.3]} 34. Nf4 {[%clk 0:00:03]} 34... Kg7
{[%clk 0:00:12.6]} 35. Rb7 {[%clk 0:00:02.9]} 35... Kf6 {[%clk 0:00:12.5]} 36.
Rc7 {[%clk 0:00:02.9]} 36... Ke5 {[%clk 0:00:12.6]} 37. g3 {[%clk 0:00:02]}
37... g5 {[%clk 0:00:12.9]} 38. hxg5 {[%clk 0:00:01.9]} 38... hxg5 {[%clk
0:00:13.8]} 39. Nh5 {[%clk 0:00:01.5]} 39... Ra1+ {[%clk 0:00:13.3]} 40. Kg2
{[%clk 0:00:01.5]} 40... Be4+ {[%clk 0:00:13.9]} 41. f3 {[%clk 0:00:02]} 41...
Ra2+ {[%clk 0:00:14.4]} 42. Kh3 {[%clk 0:00:01.4]} 42... Bxf3 {[%clk 0:00:14.9]}
43. Ng7 {[%clk 0:00:01.6]} 43... f6 {[%clk 0:00:13.4]} 44. Ne8 {[%clk
0:00:01.6]} 44... g4+ {[%clk 0:00:13.5]} 45. Kh4 {[%clk 0:00:01.8]} 45... Rh2#
{[%clk 0:00:14.3]} 0-1

[Event "*** SCC Grand Prix: Titled Tuesday Blitz"]
[Site "Chess.com"]
[Date "2020.07.07"]
[Round "9"]
[White "aripov96"]
[Black "ailime26"]
[Result "1-0"]
[WhiteElo "2362"]
[BlackElo "1861"]
[TimeControl "180+1"]
[EndTime "11:47:06 PDT"]
[Termination "aripov96 won on time"]

1. e4 {[%clk 0:02:32.2]} 1... c5 {[%clk 0:02:58.3]} 2. Nf3 {[%clk 0:02:31.5]}
2... Nc6 {[%clk 0:02:56.2]} 3. Nc3 {[%clk 0:02:30.4]} 3... e6 {[%clk 0:02:54.9]}
4. Bb5 {[%clk 0:02:28.4]} 4... d5 {[%clk 0:02:40.7]} 5. exd5 {[%clk 0:02:27.7]}
5... exd5 {[%clk 0:02:38.7]} 6. Qe2+ {[%clk 0:02:21.8]} 6... Be7 {[%clk
0:02:34.9]} 7. Ne5 {[%clk 0:02:21.7]} 7... Qd6 {[%clk 0:02:23.1]} 8. O-O {[%clk
0:01:56.4]} 8... Nf6 {[%clk 0:02:04.8]} 9. d4 {[%clk 0:01:48.5]} 9... O-O {[%clk
0:01:58.5]} 10. Bxc6 {[%clk 0:01:42.9]} 10... bxc6 {[%clk 0:01:55.6]} 11. dxc5
{[%clk 0:01:18.9]} 11... Qxc5 {[%clk 0:01:52.8]} 12. Nd3 {[%clk 0:00:57.4]}
12... Qd6 {[%clk 0:01:47.1]} 13. Bf4 {[%clk 0:00:57.5]} 13... Qd7 {[%clk
0:01:43.8]} 14. Ne5 {[%clk 0:00:56.6]} 14... Qb7 {[%clk 0:01:42]} 15. Nxc6
{[%clk 0:00:53.5]} 15... Qxc6 {[%clk 0:01:41.2]} 16. Qxe7 {[%clk 0:00:53.1]}
16... d4 {[%clk 0:01:40]} 17. Ne2 {[%clk 0:00:44.2]} 17... Bb7 {[%clk
0:01:17.5]} 18. f3 {[%clk 0:00:35.9]} 18... Rae8 {[%clk 0:01:13.3]} 19. Nxd4
{[%clk 0:00:22.1]} 19... Rxe7 {[%clk 0:01:06.6]} 20. Nxc6 {[%clk 0:00:22.3]}
20... Bxc6 {[%clk 0:01:05.5]} 21. Bd6 {[%clk 0:00:22.9]} 21... Rfe8 {[%clk
0:01:01.7]} 22. Bxe7 {[%clk 0:00:23.1]} 22... Rxe7 {[%clk 0:01:01.7]} 23. Rfe1
{[%clk 0:00:23.9]} 23... Rd7 {[%clk 0:01:00]} 24. Rad1 {[%clk 0:00:23.4]} 24...
Bd5 {[%clk 0:00:44]} 25. c4 {[%clk 0:00:19]} 25... Be6 {[%clk 0:00:42.6]} 26.
Rxd7 {[%clk 0:00:18]} 26... Nxd7 {[%clk 0:00:42]} 27. b3 {[%clk 0:00:18.2]}
27... g6 {[%clk 0:00:41.2]} 28. Kf2 {[%clk 0:00:18.6]} 28... Nc5 {[%clk
0:00:40.3]} 29. Ke3 {[%clk 0:00:18.8]} 29... a5 {[%clk 0:00:38.7]} 30. Kd4
{[%clk 0:00:19.1]} 30... Nd7 {[%clk 0:00:33.6]} 31. a3 {[%clk 0:00:19.6]} 31...
Kf8 {[%clk 0:00:26.2]} 32. b4 {[%clk 0:00:19.4]} 32... axb4 {[%clk 0:00:23.3]}
33. axb4 {[%clk 0:00:20.3]} 33... Nb6 {[%clk 0:00:19.5]} 34. c5 {[%clk
0:00:19.8]} 34... Nc8 {[%clk 0:00:11.1]} 35. b5 {[%clk 0:00:19.6]} 35... Na7
{[%clk 0:00:09.9]} 36. b6 {[%clk 0:00:15.9]} 36... Nc6+ {[%clk 0:00:07.4]} 37.
Kc3 {[%clk 0:00:16]} 37... Ke7 {[%clk 0:00:06.1]} 38. Ra1 {[%clk 0:00:14.5]}
38... Kd7 {[%clk 0:00:05.1]} 39. Rd1+ {[%clk 0:00:10.6]} 39... Kc8 {[%clk
0:00:04.6]} 40. Rd6 {[%clk 0:00:09.1]} 40... Kb7 {[%clk 0:00:04.5]} 41. f4
{[%clk 0:00:07.3]} 41... h5 {[%clk 0:00:02.7]} 42. g3 {[%clk 0:00:07.5]} 42...
Bf5 {[%clk 0:00:01.3]} 43. Kc4 {[%clk 0:00:07.3]} 43... Be6+ {[%clk 0:00:01.4]}
44. Kb5 {[%clk 0:00:06.7]} 1-0

[Event "*** SCC Grand Prix: Titled Tuesday Blitz"]
[Site "Chess.com"]
[Date "2020.07.07"]
[Round "9"]
[White "Bastiandash"]
[Black "mirochka"]
[Result "1/2-1/2"]
[WhiteElo "2318"]
[BlackElo "2152"]
[TimeControl "180+1"]
[EndTime "11:47:08 PDT"]
[Termination "Game drawn - insufficient material"]

1. d4 {[%clk 0:03:00.9]} 1... Nf6 {[%clk 0:02:58.2]} 2. Nf3 {[%clk 0:02:58.7]}
2... d5 {[%clk 0:02:57.8]} 3. c3 {[%clk 0:02:57.7]} 3... g6 {[%clk 0:02:52.1]}
4. Bg5 {[%clk 0:02:56.6]} 4... Bg7 {[%clk 0:02:52.1]} 5. Nbd2 {[%clk 0:02:57.1]}
5... O-O {[%clk 0:02:52.2]} 6. e3 {[%clk 0:02:56.6]} 6... c5 {[%clk 0:02:46.4]}
7. Be2 {[%clk 0:02:50.6]} 7... Nc6 {[%clk 0:02:43.4]} 8. O-O {[%clk 0:02:49.8]}
8... b6 {[%clk 0:02:43.5]} 9. Ne5 {[%clk 0:02:44.2]} 9... Bb7 {[%clk 0:02:41.8]}
10. f4 {[%clk 0:02:43.8]} 10... Nd7 {[%clk 0:02:37.8]} 11. Nxd7 {[%clk
0:02:35.8]} 11... Qxd7 {[%clk 0:02:37.4]} 12. Nf3 {[%clk 0:02:35.2]} 12... Kh8
{[%clk 0:02:16]} 13. Ne5 {[%clk 0:02:22.8]} 13... Qe6 {[%clk 0:02:13.8]} 14. Bg4
{[%clk 0:02:17.7]} 14... Qd6 {[%clk 0:01:27.8]} 15. Be2 {[%clk 0:02:08.7]} 15...
Rad8 {[%clk 0:01:14.9]} 16. Qe1 {[%clk 0:02:07.5]} 16... f6 {[%clk 0:01:14.2]}
17. Nxc6 {[%clk 0:02:02.6]} 17... Bxc6 {[%clk 0:01:13.8]} 18. Bh4 {[%clk
0:02:00.5]} 18... Rde8 {[%clk 0:01:11.4]} 19. Qg3 {[%clk 0:01:49.6]} 19... e5
{[%clk 0:01:08.3]} 20. fxe5 {[%clk 0:01:50.5]} 20... fxe5 {[%clk 0:01:07.8]} 21.
Rxf8+ {[%clk 0:01:50.4]} 21... Rxf8 {[%clk 0:01:03.8]} 22. Rf1 {[%clk
0:01:51.3]} 22... Rxf1+ {[%clk 0:01:01.2]} 23. Bxf1 {[%clk 0:01:52.2]} 23...
cxd4 {[%clk 0:00:57.7]} 24. cxd4 {[%clk 0:01:51.1]} 24... Qe6 {[%clk 0:00:48.5]}
25. Qf2 {[%clk 0:01:29]} 25... exd4 {[%clk 0:00:45.9]} 26. exd4 {[%clk
0:01:29.9]} 26... h6 {[%clk 0:00:45.1]} 27. Bd3 {[%clk 0:01:10.1]} 27... Kh7
{[%clk 0:00:44.6]} 28. h3 {[%clk 0:01:04.9]} 28... Be8 {[%clk 0:00:30.9]} 29.
Bg3 {[%clk 0:01:00.5]} 29... b5 {[%clk 0:00:30.2]} 30. h4 {[%clk 0:00:50.9]}
30... Qb6 {[%clk 0:00:29]} 31. Be5 {[%clk 0:00:43]} 31... Bxe5 {[%clk
0:00:28.4]} 32. dxe5 {[%clk 0:00:43.9]} 32... Qxf2+ {[%clk 0:00:28.5]} 33. Kxf2
{[%clk 0:00:44.8]} 33... Kg7 {[%clk 0:00:28.7]} 34. Ke3 {[%clk 0:00:44.5]} 34...
Kf7 {[%clk 0:00:28.7]} 35. Kd4 {[%clk 0:00:43.4]} 35... Ke6 {[%clk 0:00:28.5]}
36. Be2 {[%clk 0:00:39.3]} 36... g5 {[%clk 0:00:27.9]} 37. Bg4+ {[%clk
0:00:37.2]} 37... Ke7 {[%clk 0:00:26.7]} 38. hxg5 {[%clk 0:00:22.7]} 38... hxg5
{[%clk 0:00:25.2]} 39. Kxd5 {[%clk 0:00:23]} 39... b4 {[%clk 0:00:25.5]} 40. Ke4
{[%clk 0:00:17.2]} 40... Bc6+ {[%clk 0:00:23.9]} 41. Kf5 {[%clk 0:00:14.2]}
41... Bxg2 {[%clk 0:00:24.4]} 42. Kxg5 {[%clk 0:00:14.7]} 42... Bd5 {[%clk
0:00:24.3]} 43. b3 {[%clk 0:00:10.6]} 43... a5 {[%clk 0:00:23.6]} 44. Bf5 {[%clk
0:00:10.6]} 44... a4 {[%clk 0:00:23.4]} 45. bxa4 {[%clk 0:00:09.1]} 45... Bxa2
{[%clk 0:00:23.8]} 46. Bc2 {[%clk 0:00:08.1]} 46... b3 {[%clk 0:00:23.8]} 47.
Bxb3 {[%clk 0:00:08.5]} 47... Bxb3 {[%clk 0:00:24.3]} 48. a5 {[%clk 0:00:09.4]}
48... Bc4 {[%clk 0:00:24.6]} 49. Kf4 {[%clk 0:00:09.1]} 49... Ke6 {[%clk
0:00:23.7]} 50. Ke4 {[%clk 0:00:09.4]} 50... Bb5 {[%clk 0:00:23.8]} 51. Kd4
{[%clk 0:00:09.6]} 51... Ba6 {[%clk 0:00:24.3]} 52. Ke4 {[%clk 0:00:09.5]} 52...
Bb5 {[%clk 0:00:23.1]} 53. Kd4 {[%clk 0:00:09.8]} 53... Ba6 {[%clk 0:00:23.7]}
54. Kc5 {[%clk 0:00:09.2]} 54... Bf1 {[%clk 0:00:24.6]} 55. Kb6 {[%clk
0:00:10.1]} 55... Be2 {[%clk 0:00:24.7]} 56. a6 {[%clk 0:00:09.7]} 56... Bxa6
{[%clk 0:00:25.1]} 57. Kxa6 {[%clk 0:00:09.2]} 57... Kxe5 {[%clk 0:00:26]}
1/2-1/2

[Event "*** SCC Grand Prix: Titled Tuesday Blitz"]
[Site "Chess.com"]
[Date "2020.07.07"]
[Round "9"]
[White "IsaacWiebe"]
[Black "PawnEatingZombie"]
[Result "1-0"]
[WhiteElo "2101"]
[BlackElo "2181"]
[TimeControl "180+1"]
[EndTime "11:47:09 PDT"]
[Termination "IsaacWiebe won by resignation"]

1. d4 {[%clk 0:03:00.9]} 1... d5 {[%clk 0:02:59.1]} 2. c4 {[%clk 0:03:00.3]}
2... e6 {[%clk 0:02:58.3]} 3. Nf3 {[%clk 0:03:00.2]} 3... dxc4 {[%clk
0:02:57.1]} 4. e3 {[%clk 0:02:57]} 4... b5 {[%clk 0:02:57.1]} 5. a4 {[%clk
0:02:55.6]} 5... c6 {[%clk 0:02:57.6]} 6. axb5 {[%clk 0:02:54]} 6... cxb5 {[%clk
0:02:56.1]} 7. b3 {[%clk 0:02:54.3]} 7... Bb4+ {[%clk 0:02:56.6]} 8. Bd2 {[%clk
0:02:50.6]} 8... Bxd2+ {[%clk 0:02:56.8]} 9. Qxd2 {[%clk 0:02:44.7]} 9... a5
{[%clk 0:02:56.3]} 10. bxc4 {[%clk 0:02:44.4]} 10... b4 {[%clk 0:02:56.8]} 11.
Bd3 {[%clk 0:02:40.6]} 11... Nf6 {[%clk 0:02:56.3]} 12. O-O {[%clk 0:02:39.8]}
12... O-O {[%clk 0:02:56.5]} 13. Qc2 {[%clk 0:02:29.5]} 13... Nbd7 {[%clk
0:02:53.7]} 14. Nbd2 {[%clk 0:02:27.3]} 14... Bb7 {[%clk 0:02:49.8]} 15. c5
{[%clk 0:02:12.2]} 15... Qc7 {[%clk 0:02:47.4]} 16. Nc4 {[%clk 0:02:07.3]} 16...
Bc6 {[%clk 0:02:38.7]} 17. Nfe5 {[%clk 0:02:01.5]} 17... Nxe5 {[%clk 0:02:32.9]}
18. Nxe5 {[%clk 0:01:49.4]} 18... Rfb8 {[%clk 0:02:21.9]} 19. Rfb1 {[%clk
0:01:43.3]} 19... h6 {[%clk 0:02:14.5]} 20. Nc4 {[%clk 0:01:34.7]} 20... a4
{[%clk 0:01:42.8]} 21. Nb6 {[%clk 0:01:32.5]} 21... b3 {[%clk 0:01:43.1]} 22.
Nxa8 {[%clk 0:01:11.6]} 22... Bxa8 {[%clk 0:01:24]} 23. Qe2 {[%clk 0:00:52.5]}
23... Qc6 {[%clk 0:01:16.6]} 24. f3 {[%clk 0:00:51.9]} 24... Qb7 {[%clk
0:00:48.8]} 25. Rxa4 {[%clk 0:00:48.8]} 25... Nd5 {[%clk 0:00:35.8]} 26. Qd2
{[%clk 0:00:36.7]} 26... f5 {[%clk 0:00:31.2]} 27. Bc4 {[%clk 0:00:30.9]} 27...
b2 {[%clk 0:00:31.3]} 28. Rxb2 {[%clk 0:00:20.2]} 28... Qxb2 {[%clk 0:00:28.9]}
29. Qxb2 {[%clk 0:00:20.3]} 29... Rxb2 {[%clk 0:00:28.8]} 30. Rxa8+ {[%clk
0:00:20.4]} 30... Kh7 {[%clk 0:00:29]} 31. Bxd5 {[%clk 0:00:21]} 31... exd5
{[%clk 0:00:28.8]} 32. Rd8 {[%clk 0:00:21.5]} 32... Re2 {[%clk 0:00:26.1]} 33.
Rxd5 {[%clk 0:00:20.4]} 33... Rxe3 {[%clk 0:00:26.7]} 34. Rxf5 {[%clk
0:00:20.2]} 34... Rc3 {[%clk 0:00:23.9]} 35. Rd5 {[%clk 0:00:20.3]} 35... Kg6
{[%clk 0:00:23.7]} 36. h4 {[%clk 0:00:20.5]} 36... Kf6 {[%clk 0:00:23]} 37. Rd6+
{[%clk 0:00:20.9]} 37... Ke7 {[%clk 0:00:22.6]} 38. Kh2 {[%clk 0:00:19.8]} 38...
h5 {[%clk 0:00:19.6]} 39. Kg3 {[%clk 0:00:19.4]} 39... Rc2 {[%clk 0:00:19.3]}
40. Kh3 {[%clk 0:00:19.1]} 40... Rc3 {[%clk 0:00:18.6]} 41. Rd5 {[%clk
0:00:17.9]} 41... g6 {[%clk 0:00:16.9]} 42. Rd6 {[%clk 0:00:17.9]} 42... Rd3
{[%clk 0:00:15.2]} 43. Kg3 {[%clk 0:00:18.3]} 43... Rd2 {[%clk 0:00:11.2]} 44.
d5 {[%clk 0:00:13.8]} 44... Rc2 {[%clk 0:00:08.9]} 45. Re6+ {[%clk 0:00:12.6]}
45... Kf7 {[%clk 0:00:08.4]} 46. c6 {[%clk 0:00:12.6]} 46... Rd2 {[%clk
0:00:06.7]} 47. Rd6 {[%clk 0:00:12.8]} 47... Ke7 {[%clk 0:00:06.2]} 48. Rd7+
{[%clk 0:00:12.8]} 48... Kf6 {[%clk 0:00:05.6]} 49. c7 {[%clk 0:00:12.8]} 49...
Rc2 {[%clk 0:00:05.4]} 50. d6 {[%clk 0:00:11.7]} 50... Ke6 {[%clk 0:00:04.3]}
51. Rd8 {[%clk 0:00:11.9]} 1-0

[Event "*** SCC Grand Prix: Titled Tuesday Blitz"]
[Site "Chess.com"]
[Date "2020.07.07"]
[Round "9"]
[White "Indianlad"]
[Black "TheBigBoss04"]
[Result "0-1"]
[WhiteElo "2943"]
[BlackElo "2767"]
[TimeControl "180+1"]
[EndTime "11:47:12 PDT"]
[Termination "TheBigBoss04 won by resignation"]

1. c4 {[%clk 0:03:00.9]} 1... Nf6 {[%clk 0:02:59.1]} 2. Nf3 {[%clk 0:02:59.5]}
2... e6 {[%clk 0:02:58.6]} 3. Nc3 {[%clk 0:02:50.5]} 3... d5 {[%clk 0:02:58.6]}
4. e3 {[%clk 0:02:50.5]} 4... b6 {[%clk 0:02:54.6]} 5. b4 {[%clk 0:02:44.2]}
5... Bb7 {[%clk 0:02:45.7]} 6. Bb2 {[%clk 0:02:42.5]} 6... a6 {[%clk 0:02:36.5]}
7. b5 {[%clk 0:02:39.4]} 7... dxc4 {[%clk 0:02:35.1]} 8. Bxc4 {[%clk 0:02:40.1]}
8... Bd6 {[%clk 0:02:28.5]} 9. a4 {[%clk 0:02:39.4]} 9... O-O {[%clk 0:02:27.7]}
10. O-O {[%clk 0:02:40]} 10... Nbd7 {[%clk 0:02:15.6]} 11. d4 {[%clk 0:02:40.2]}
11... a5 {[%clk 0:02:02.1]} 12. Qc2 {[%clk 0:02:38.3]} 12... Bxf3 {[%clk
0:01:55]} 13. gxf3 {[%clk 0:02:39.2]} 13... Nd5 {[%clk 0:01:41.1]} 14. f4 {[%clk
0:02:32.3]} 14... Nxc3 {[%clk 0:01:19]} 15. Qxc3 {[%clk 0:02:30]} 15... Qh4
{[%clk 0:01:18.3]} 16. Kh1 {[%clk 0:02:27.1]} 16... Nf6 {[%clk 0:01:15.6]} 17.
f3 {[%clk 0:02:04.3]} 17... Nd5 {[%clk 0:01:09.9]} 18. Qd2 {[%clk 0:02:00.8]}
18... Rad8 {[%clk 0:01:06.3]} 19. Rg1 {[%clk 0:01:59.7]} 19... f5 {[%clk
0:00:58.9]} 20. Rg3 {[%clk 0:01:59.8]} 20... Rf6 {[%clk 0:00:52.5]} 21. Rag1
{[%clk 0:01:56]} 21... Rd7 {[%clk 0:00:51.3]} 22. Bxd5 {[%clk 0:01:52.5]} 22...
exd5 {[%clk 0:00:50.7]} 23. Qg2 {[%clk 0:01:53.2]} 23... Qh6 {[%clk 0:00:38.9]}
24. Bc3 {[%clk 0:01:30.8]} 24... g6 {[%clk 0:00:30.2]} 25. h4 {[%clk 0:01:21.7]}
25... Re6 {[%clk 0:00:22.8]} 26. Bd2 {[%clk 0:00:39.8]} 26... Qxh4+ {[%clk
0:00:20.5]} 27. Rh3 {[%clk 0:00:40.5]} 27... Qf6 {[%clk 0:00:20.6]} 28. Qg3
{[%clk 0:00:41]} 28... Rg7 {[%clk 0:00:18.1]} 29. Qf2 {[%clk 0:00:29.6]} 29...
Ree7 {[%clk 0:00:17.5]} 30. Rg5 {[%clk 0:00:25.1]} 30... Qe6 {[%clk 0:00:16.5]}
31. Bc1 {[%clk 0:00:25.4]} 31... Kf8 {[%clk 0:00:12.3]} 32. Kg2 {[%clk
0:00:22.4]} 32... Ke8 {[%clk 0:00:11.7]} 33. Kf1 {[%clk 0:00:22.7]} 33... Kd8
{[%clk 0:00:11.4]} 34. Qc2 {[%clk 0:00:23.3]} 34... Bxf4 {[%clk 0:00:08]} 35.
Rg2 {[%clk 0:00:19.8]} 35... Bxe3 {[%clk 0:00:08.4]} 36. Re2 {[%clk 0:00:20.3]}
36... f4 {[%clk 0:00:08.9]} 37. Rh4 {[%clk 0:00:20.9]} 37... g5 {[%clk
0:00:08.3]} 38. Rh1 {[%clk 0:00:17.9]} 38... g4 {[%clk 0:00:08.6]} 39. Bxe3
{[%clk 0:00:13]} 39... gxf3 {[%clk 0:00:09]} 40. Rf2 {[%clk 0:00:04.7]} 40...
Qxe3 {[%clk 0:00:09]} 41. Qd1 {[%clk 0:00:05.1]} 41... Rg2 {[%clk 0:00:08.2]}
42. Rxf3 {[%clk 0:00:04]} 42... Qe2+ {[%clk 0:00:04.1]} 43. Qxe2 {[%clk
0:00:04.5]} 43... Rgxe2 {[%clk 0:00:04.4]} 44. Rxh7 {[%clk 0:00:05.4]} 44...
Re1+ {[%clk 0:00:03.7]} 45. Kg2 {[%clk 0:00:05.5]} 45... Rxh7 {[%clk 0:00:03.2]}
0-1